fUST/lending_fUST_20260223
["ID","MTS","AMOUNT","RATE_DAILY","PERIOD"]
[406358586,1771792163537,-274.43075317,0.00026,2]
[406358587,1771792163557,-84237.87156011,0.0003,30]
[406358588,1771792163576,-3560.59241006,0.0003,60]
[406358589,1771792163597,-309.85,0.00031259,27]
[406358590,1771792163619,-19170.61708039,0.00032,2]
[406358642,1771792232200,-380.39570983,0.00013699,2]
[406358644,1771792232210,-19.60429017,0.00024658,2]
[406358645,1771792232223,-480.39570983,0.00024658,2]
[406358647,1771792232234,-500.0,0.00024658,2]
[406358649,1771792232245,-500.0,0.00024658,2]
[406358651,1771792232254,-500.0,0.00024658,2]
[406358652,1771792232263,-400.0,0.00031999,2]
[406358654,1771792232272,-2105.89199795,0.00032,2]
[406358657,1771792232284,-7370.3387691,0.00032,2]
[406358667,1771792238362,-500.0,0.00024658,2]
[406358668,1771792238372,-500.0,0.00024658,2]
[406358669,1771792238382,-141.0,0.0002978,60]
[406358710,1771792243500,-1057.6712214,0.00021598,2]
[406358711,1771792243510,-1057.6712214,0.00024458,2]
[406358712,1771792243519,-1057.6712214,0.00027319,2]
[406358713,1771792243528,-25.405092,0.0002978,60]
[406358714,1771792243538,-1057.6712214,0.00030179,2]
[406358715,1771792243548,-30542.7842297,0.00032,2]
[406358716,1771792243557,-201.72638594,0.00032,2]
[406358717,1771792243567,-500.83948584,0.0003288,2]
[406358718,1771792243577,-43306.51221557,0.0003342,2]
[406358719,1771792243586,-270.61675109,0.00033427,2]
[406358720,1771792243595,-5057.999999,0.00036,30]
[406358721,1771792243605,-340.83,0.00038,60]
[406358722,1771792243705,-151.0,0.00038356,120]
[406358723,1771792243716,-151.0,0.00038356,120]
[406358724,1771792243726,-291.491713,0.00038356,120]
[406358725,1771792243737,-170.68573349,0.00038708,2]
[406358726,1771792243747,-307.23432029,0.00038708,2]
[406358727,1771792243758,-15393.45147745,0.00039,2]
[406358728,1771792243768,-9384.47536336,0.000395,10]
[406358729,1771792243778,-154.83271016,0.0003993,2]
[406358730,1771792243789,-278.69887829,0.0003993,2]
[406358731,1771792243799,-12500.0,0.0004,45]
[406358732,1771792243810,-219.645019,0.0004,120]
[406358733,1771792243819,-151.0,0.0004,120]
[406358735,1771792243829,-151.0,0.0004,120]
[406358736,1771792243838,-151.0,0.0004,120]
[406358737,1771792243847,-206.269879,0.0004,120]
[406358738,1771792243857,-283.15,0.0004,30]
[406358739,1771792243867,-490.1,0.0004,30]
[406358740,1771792243876,-157.96901639,0.00040358,20]
[406358741,1771792243885,-161.50269228,0.00040358,20]
[406358742,1771792243894,-500.0,0.00040396,2]
[406358743,1771792243904,-500.0,0.00040499,2]
[406358744,1771792243914,-12500.0,0.000405,45]
[406358745,1771792243923,-500.0,0.00040999,2]
[406358746,1771792243933,-7636.138112,0.00041,46]
[406358747,1771792243945,-982.4691639,0.00041,46]
[406358753,1771792246354,-298.09805315,0.00041,22]
[406358754,1771792246364,-151.92745826,0.00041745,2]
[406358755,1771792246376,-20.96339047,0.00041745,2]
[406358756,1771792246386,-162.6549105,0.00041905,2]
[406358757,1771792246395,-151.0,0.00042,120]
[406358758,1771792246406,-151.0,0.00042,120]
[406358759,1771792246415,-151.0,0.00042,120]
[406358760,1771792246426,-69.99084023,0.00042,30]
[406358761,1771792553415,5000.0,0.000157,120]
[406358762,1771792576022,598.26418164,0.000157,120]
[406358763,1771793239140,-326.50605517,0.00013699,2]
[406358764,1771793239165,-150.0,0.00013712,2]
[406358765,1771793239193,-1200.0,0.00013752,2]
[406358766,1771793239219,-300.0,0.00013752,2]
[406358767,1771793239244,-603.65172336,0.00013753,2]
[406358768,1771793239271,-567.43261996,0.00013753,2]
[406358769,1771793239295,-567.43261996,0.00013753,2]
[406358770,1771793239322,-300.0,0.00015126,2]
[406358771,1771793239347,-1680.0,0.00015127,2]
[406358772,1771793239371,-68.7532586,0.00015127,2]
[406358773,1771793245724,453.0,0.00012,10]
[406358774,1771793254080,-567.43261996,0.00013753,2]
[406358775,1771793254105,-351.2467414,0.00015127,2]
[406358776,1771793254126,-438.96960136,0.00015127,2]
[406358778,1771793346110,-567.43261996,0.00013753,2]
[406358779,1771793346132,-567.43261996,0.00013753,2]
[406358780,1771793346152,-567.43261996,0.00013753,2]
[406358781,1771793346172,-89.12265576,0.00013753,2]
[406358782,1771793346196,-478.87739682,0.00013753,2]
[406358783,1771793346217,-300.0,0.00015423,2]
[406358784,1771793346236,-567.43261996,0.00015424,2]
[406358785,1771793346256,-567.43261996,0.00015424,2]
[406358786,1771793346277,-567.43261996,0.00015449,2]
[406358787,1771793346296,-567.43261996,0.00015524,2]
[406358788,1771793346318,-567.43261996,0.00015651,2]
[406358789,1771793346339,-7781.92342076,0.00015668,2]
[406358790,1771793346359,-170.12764812,0.00015668,2]
[406358791,1771793346379,-177.0,0.00015712,2]
[406358792,1771793346398,-170.12764812,0.00015785,2]
[406358793,1771793346417,-567.43261996,0.00015827,2]
[406358794,1771793346540,-567.43261996,0.00016054,2]
[406358795,1771793346561,-891.3627678,0.00016246,2]
[406358796,1771793346583,-567.43261996,0.00016332,2]
[406358797,1771793346605,-500.0,0.00016513,2]
[406358798,1771793346625,-1055.0,0.0001664,2]
[406358799,1771793346644,-567.43261996,0.0001666,2]
[406358800,1771793346663,-1403.7302504,0.00016785,2]
[406358801,1771793346682,-420.0,0.00016872,2]
[406358802,1771793346702,-204.0,0.00017712,2]
[406358803,1771793346724,-583.86880523,0.00017999,2]
[406358804,1771793346744,-500.0,0.00017999,2]
[406358805,1771793346763,-487.83017195,0.00017999,2]
[406358806,1771793346781,-500.0,0.00017999,2]
[406358807,1771793346799,-500.0,0.00017999,2]
[406358808,1771793346818,-500.0,0.00017999,2]
[406358809,1771793346836,-500.0,0.00017999,2]
[406358810,1771793346853,-158.63817929,0.00017999,2]
[406358811,1771793346872,-500.0,0.00017999,2]
[406358812,1771793346890,-500.0,0.00017999,2]
[406358813,1771793346908,-521.848783,0.00017999,2]
[406358814,1771793346925,-500.0,0.00017999,2]
[406358815,1771793346943,-500.0,0.00017999,2]
[406358816,1771793346964,-307.0,0.00018458,2]
[406358817,1771793346985,-511.333,0.00019178,2]
[406358818,1771793347004,-506.26,0.00019178,2]
[406358819,1771793347022,-511.333,0.00019589,3]
[406358820,1771793347040,-511.333,0.0002,4]
[406358821,1771793347060,-500.0,0.00021917,2]
[406358822,1771793347080,-500.0,0.00024949,2]
[406358823,1771793347104,-649.47807233,0.00024951,2]
[406358824,1771793347127,-500.0,0.00024951,2]
[406358825,1771793347146,-500.0,0.00024951,2]
[406358826,1771793347166,-500.0,0.00024951,2]
[406358827,1771793347186,-500.0,0.00024951,2]
[406358828,1771793347206,-500.0,0.00024951,2]
[406358829,1771793347226,-500.0,0.00024951,2]
[406358830,1771793347248,-500.0,0.00024951,2]
[406358831,1771793347268,-500.0,0.00024951,2]
[406358832,1771793347288,-500.0,0.00024951,2]
[406358833,1771793347308,-500.0,0.00024951,2]
[406358834,1771793347333,-500.0,0.00024951,2]
[406358835,1771793347356,-500.0,0.00024951,2]
[406358836,1771793347376,-500.0,0.00024951,2]
[406358837,1771793347396,-500.0,0.00024951,2]
[406358838,1771793347417,-500.0,0.00024951,2]
[406358839,1771793347439,-500.0,0.00024951,2]
[406358840,1771793347461,-500.0,0.00024951,2]
[406358841,1771793347485,-500.0,0.00024951,2]
[406358842,1771793347508,-500.0,0.00024951,2]
[406358843,1771793347528,-500.0,0.00024951,2]
[406358844,1771793347550,-500.0,0.00024951,2]
[406358845,1771793347571,-500.0,0.00024951,2]
[406358846,1771793347595,-163.41417076,0.00024951,2]
[406358847,1771793347615,-500.0,0.00024951,2]
[406358848,1771793347636,-500.0,0.00024951,2]
[406358849,1771793347658,-500.0,0.00024951,2]
[406358850,1771793347679,-500.0,0.00024951,2]
[406358851,1771793347699,-500.0,0.00024951,2]
[406358852,1771793347721,-500.0,0.00024951,2]
[406358853,1771793347743,-500.0,0.00024951,2]
[406358854,1771793347763,-500.0,0.00024951,2]
[406358855,1771793347783,-500.0,0.00024951,2]
[406358856,1771793347804,-500.0,0.00024951,2]
[406358857,1771793347824,-500.0,0.00024951,2]
[406358858,1771793347845,-303.81417585,0.00024951,2]
[406358859,1771793347865,-500.0,0.00024951,2]
[406358860,1771793347885,-500.0,0.00024951,2]
[406358861,1771793347904,-500.0,0.00024951,2]
[406358862,1771793347926,-500.0,0.00024951,2]
[406358863,1771793347947,-500.0,0.00024951,2]
[406358864,1771793347971,-500.0,0.00024951,2]
[406358865,1771793347991,-500.0,0.00024951,2]
[406358866,1771793348011,-500.0,0.00024951,2]
[406358867,1771793348032,-500.0,0.00024951,2]
[406358868,1771793348058,-500.0,0.00024951,2]
[406358869,1771793348079,-500.0,0.00024951,2]
[406358870,1771793348103,-500.0,0.00024951,2]
[406358871,1771793348123,-500.0,0.00024951,2]
[406358872,1771793348144,-500.0,0.00024951,2]
[406358873,1771793348166,-500.0,0.00024951,2]
[406358874,1771793348187,-500.0,0.00024951,2]
[406358875,1771793348207,-499.99999999,0.00024951,2]
[406358876,1771793348232,-500.0,0.00024951,2]
[406358877,1771793348254,-500.0,0.00024951,2]
[406358878,1771793348275,-500.0,0.00024951,2]
[406358879,1771793348296,-500.0,0.00024951,2]
[406358880,1771793348317,-500.0,0.00024951,2]
[406358881,1771793348341,-500.0,0.00024951,2]
[406358882,1771793348363,-500.0,0.00024951,2]
[406358883,1771793348384,-500.0,0.00024951,2]
[406358884,1771793348405,-500.0,0.00024951,2]
[406358885,1771793348427,-500.0,0.00024951,2]
[406358886,1771793348448,-500.0,0.00024951,2]
[406358887,1771793348469,-500.0,0.00024951,2]
[406358888,1771793348490,-500.0,0.00024951,2]
[406358889,1771793348514,-500.0,0.00024951,2]
[406358890,1771793348535,-500.0,0.00024951,2]
[406358891,1771793348557,-500.0,0.00024951,2]
[406358892,1771793348578,-500.0,0.00024951,2]
[406358893,1771793348599,-500.0,0.00024951,2]
[406358894,1771793348621,-500.0,0.00024951,2]
[406358895,1771793348641,-500.0,0.00024951,2]
[406358896,1771793348661,-500.0,0.00024951,2]
[406358897,1771793348682,-359.41271016,0.00024951,2]
[406358898,1771793348702,-500.0,0.00024951,2]
[406358899,1771793348722,-500.0,0.00024951,2]
[406358900,1771793348741,-500.0,0.00024951,2]
[406358901,1771793348762,-500.0,0.00024951,2]
[406358902,1771793348782,-559.05639326,0.00024951,2]
[406358903,1771793348803,-500.0,0.00024951,2]
[406358904,1771793348824,-500.0,0.00024951,2]
[406358905,1771793348844,-500.0,0.00024951,2]
[406358906,1771793348864,-500.0,0.00024951,2]
[406358907,1771793348885,-500.0,0.00024951,2]
[406358908,1771793348905,-500.0,0.00024951,2]
[406358909,1771793348926,-500.0,0.00024951,2]
[406358910,1771793348947,-500.0,0.00024951,2]
[406358911,1771793348966,-500.0,0.00024951,2]
[406358912,1771793348987,-500.0,0.00024951,2]
[406358913,1771793349007,-500.0,0.00024951,2]
[406358914,1771793349026,-500.0,0.00024951,2]
[406358915,1771793349050,-500.0,0.00024951,2]
[406358916,1771793349154,-500.0,0.00024951,2]
[406358917,1771793349176,-500.0,0.00024951,2]
[406358918,1771793349198,-500.0,0.00024951,2]
[406358919,1771793349220,-500.0,0.00024951,2]
[406358920,1771793349243,-500.0,0.00024951,2]
[406358921,1771793349265,-500.0,0.00024951,2]
[406358922,1771793349286,-192.21106708,0.00024951,2]
[406358923,1771793349310,-499.99999999,0.00024951,2]
[406358924,1771793349330,-500.0,0.00024951,2]
[406358925,1771793349350,-500.0,0.00024951,2]
[406358926,1771793349370,-500.0,0.00024951,2]
[406358927,1771793349392,-500.0,0.00024951,2]
[406358928,1771793349414,-500.0,0.00024951,2]
[406358929,1771793349434,-500.0,0.00024951,2]
[406358930,1771793349453,-368.21863378,0.00024951,2]
[406358931,1771793349473,-500.0,0.00024951,2]
[406358932,1771793349493,-500.0,0.00024951,2]
[406358933,1771793349512,-500.0,0.00024951,2]
[406358934,1771793349531,-500.0,0.00024951,2]
[406358935,1771793349552,-500.0,0.00024951,2]
[406358936,1771793349572,-500.0,0.00024951,2]
[406358937,1771793349592,-500.0,0.00024951,2]
[406358938,1771793349612,-2941.86576377,0.00024952,6]
[406358939,1771793349632,-500.0,0.00026908,7]
[406358940,1771793349651,-150.0,0.00027424,2]
[406358941,1771793349671,-150.0,0.00027635,2]
[406358942,1771793349689,-273.26,0.00027995,2]
[406358943,1771793349708,-183.24,0.00028001,16]
[406358944,1771793349728,-500.0,0.00030161,7]
[406358945,1771793349749,-500.0,0.00030875,7]
[406358946,1771793349769,-200.0,0.00031535,28]
[406358947,1771793349789,-500.0,0.00032046,7]
[406358948,1771793349808,-344.81,0.00032173,7]
[406358949,1771793349828,-151.04,0.00032173,7]
[406358950,1771793349851,-500.0,0.00033674,7]
[406358951,1771793349871,-500.0,0.00034338,7]
[406358952,1771793349891,-200.0,0.00035069,39]
[406358953,1771793349911,-500.0,0.00035142,30]
[406358954,1771793349931,-188.11440347,0.0003553,2]
[406358955,1771793357121,-500.0,0.00024951,2]
[406358956,1771793357145,-500.0,0.00024951,2]
[406358957,1771793357165,-285.55156673,0.0003553,2]
[406358958,1771793357188,-241.16006654,0.0003553,2]
[406358959,1771793370125,-732.61215126,0.0003553,2]
[406358960,1771793370147,-178.2946881,0.0003553,2]
[406358961,1771793370168,-488.81,0.00038,60]
[406358962,1771793370189,-500.0,0.00038367,30]
[406358963,1771793370211,-262.13583627,0.00038708,2]
[406358964,1771793370233,-311.20352772,0.00038708,2]
[406358965,1771793370256,-500.0,0.00038875,30]
[406358966,1771793370276,-500.0,0.0003896,30]
[406358967,1771793370296,-277.9381049,0.00039195,2]
[406358968,1771793370317,-973.7722178,0.00039245,2]
[406358969,1771793370337,-248.17581217,0.00039372,2]
[406358970,1771793370356,-178.2946881,0.00039616,2]
[406358971,1771793370376,-189.29456282,0.00039883,31]
[406358972,1771793370396,-1288.345,0.00039884,120]
[406358973,1771793370415,-475.0,0.00039884,120]
[406358974,1771793370435,-475.0,0.00039884,120]
[406358975,1771793370453,-475.0,0.00039884,120]
[406358976,1771793370472,-475.0,0.00039884,120]
[406358977,1771793370492,-475.0,0.00039884,120]
[406358978,1771793370511,-475.0,0.00039884,120]
[406358979,1771793370532,-475.0,0.00039884,120]
[406358980,1771793370552,-475.0,0.00039884,120]
[406358981,1771793370573,-475.0,0.00039884,120]
[406358982,1771793370593,-221.72205631,0.00039884,120]
[406359012,1771793438644,-9024.7250547,0.00036486,2]
[406359014,1771793438654,-253.27794369,0.00039884,120]
[406359016,1771793438663,-475.0,0.00039884,120]
[406359018,1771793438672,-475.0,0.00039884,120]
[406359019,1771793438683,-475.0,0.00039884,120]
[406359020,1771793438692,-475.0,0.00039884,120]
[406359021,1771793438705,-475.0,0.00039884,120]
[406359022,1771793438715,-475.0,0.00039884,120]
[406359023,1771793438724,-475.0,0.00039884,120]
[406359024,1771793438733,-475.0,0.00039884,120]
[406359025,1771793438742,-475.0,0.00039884,120]
[406359026,1771793438752,-475.0,0.00039884,120]
[406359027,1771793438761,-475.0,0.00039884,120]
[406359028,1771793438770,-475.0,0.00039884,120]
[406359029,1771793438780,-475.0,0.00039884,120]
[406359030,1771793438789,-475.0,0.00039884,120]
[406359031,1771793438799,-475.0,0.00039884,120]
[406359032,1771793438808,-475.0,0.00039884,120]
[406359033,1771793438818,-279.90995335,0.00039884,120]
[406359034,1771793438830,-195.09004665,0.00039884,120]
[406359035,1771793438839,-475.0,0.00039884,120]
[406359036,1771793438849,-475.0,0.00039884,120]
[406359037,1771793438859,-475.0,0.00039884,120]
[406359038,1771793438869,-475.0,0.00039884,120]
[406359039,1771793438879,-475.0,0.00039884,120]
[406359040,1771793438888,-475.0,0.00039884,120]
[406359041,1771793438898,-475.0,0.00039884,120]
[406359042,1771793438908,-475.0,0.00039884,120]
[406359043,1771793438920,-475.0,0.00039884,120]
[406359044,1771793438930,-475.0,0.00039884,120]
[406359045,1771793438940,-475.0,0.00039884,120]
[406359046,1771793438949,-475.0,0.00039884,120]
[406359047,1771793438960,-475.0,0.00039884,120]
[406359048,1771793438970,-475.0,0.00039884,120]
[406359049,1771793438980,-437.95383892,0.00039884,120]
[406359215,1771793443824,-37.04616108,0.00039884,120]
[406359216,1771793443835,-475.0,0.00039884,120]
[406359217,1771793443847,-475.0,0.00039884,120]
[406359218,1771793443856,-475.0,0.00039884,120]
[406359219,1771793443868,-475.0,0.00039884,120]
[406359220,1771793443879,-475.0,0.00039884,120]
[406359221,1771793443888,-475.0,0.00039884,120]
[406359222,1771793443898,-475.0,0.00039884,120]
[406359223,1771793443907,-475.0,0.00039884,120]
[406359224,1771793443916,-475.0,0.00039884,120]
[406359225,1771793443925,-475.0,0.00039884,120]
[406359226,1771793443935,-475.0,0.00039884,120]
[406359227,1771793443944,-238.17383892,0.00039884,120]
[406359228,1771793443956,-236.82616108,0.00039884,120]
[406359229,1771793443966,-475.0,0.00039884,120]
[406359230,1771793443977,-475.0,0.00039884,120]
[406359231,1771793443987,-475.0,0.00039884,120]
[406359232,1771793443996,-475.0,0.00039884,120]
[406359233,1771793444006,-475.0,0.00039884,120]
[406359234,1771793444015,-475.0,0.00039884,120]
[406359235,1771793444025,-435.972,0.00039884,120]
[406359236,1771793444035,-4297.9538413,0.000399,2]
[406359237,1771793444044,-4090.50907031,0.0004,45]
[406359243,1771793446719,-5498.93670626,0.0004,45]
[406359244,1771794027289,150.0,7.78e-05,30]
[406359256,1771794428117,-340.1126265,0.00017465,2]
[406359257,1771794452082,-1708.55334791,0.00017465,2]
[406359258,1771794452103,-128.49327444,0.0001773,2]
[406359259,1771794555087,-998.16395208,0.00017553,2]
[406359260,1771794555109,-21.50672556,0.0001773,2]
[406359261,1771794555129,-686.0,0.00017998,2]
[406359262,1771794555151,-177.0,0.0001973,2]
[406359263,1771794555171,-348.96392431,0.00020909,4]
[406359264,1771794555191,-528.85732579,0.00023692,4]
[406359265,1771794555211,-394.420134,0.0002463,2]
[406359266,1771794555232,-1395.85569723,0.00026372,4]
[406359267,1771794555252,-865.0,0.00026745,2]
[406359268,1771794555272,-300.0,0.00026745,2]
[406359269,1771794555292,-3963.67455832,0.00026746,2]
[406359270,1771794555311,-15080.0273801,0.00026844,2]
[406359271,1771794577449,-26207.0119881,0.00026844,2]
[406359272,1771794577476,-500.0,0.00026844,2]
[406359273,1771794577496,-500.0,0.00026844,2]
[406359274,1771794577520,-500.0,0.00026844,2]
[406359275,1771794577543,-500.0,0.00026844,2]
[406359276,1771794577563,-500.0,0.00026844,2]
[406359277,1771794577585,-500.0,0.00026844,2]
[406359278,1771794577606,-589.31268621,0.00026844,2]
[406359279,1771794577627,-500.0,0.00026844,2]
[406359280,1771794577648,-514.12085817,0.00026844,2]
[406359281,1771794577672,-566.34141708,0.00026844,2]
[406359282,1771794577693,-339.89515481,0.00026844,2]
[406359283,1771794577713,-552.93471018,0.00026846,16]
[406359284,1771794577732,-500.0,0.00026847,16]
[406359285,1771794577752,-150.0,0.00027397,5]
[406359286,1771794577771,-1422.35986718,0.00027529,2]
[406359287,1771794577791,-250.0,0.00027945,5]
[406359288,1771794577809,-150.0,0.00028,5]
[406359289,1771794577829,-350.0,0.00028493,5]
[406359290,1771794577847,-250.0,0.00028548,5]
[406359291,1771794577867,-420.0,0.00028922,2]
[406359292,1771794577887,-388.66113322,0.00029041,5]
[406359293,1771794577907,-350.0,0.00029096,5]
[406359294,1771794577927,-218.41,0.000291,7]
[406359295,1771794577948,-500.0,0.00029497,7]
[406359296,1771794577969,-200.0,0.00030852,25]
[406359297,1771794577988,-1000.0,0.00031233,5]
[406359298,1771794578008,-287.0,0.00031276,2]
[406359299,1771794578028,-500.0,0.00031542,7]
[406359300,1771794578048,-1066.72703272,0.00031834,4]
[406359309,1771794631612,-492.62057381,0.0002169,120]
[406359311,1771794631622,-205.02,0.00021909,2]
[406359313,1771794631631,-454.52046251,0.00031834,4]
[406359318,1771794631668,-504.07830695,0.00031834,4]
[406359320,1771794631682,-1112.20884126,0.00031834,4]
[406359322,1771794631691,-1930.5302278,0.00032329,5]
[406359327,1771794631725,-73.12731689,0.00032329,5]
[406359329,1771794631734,-500.0,0.00032433,7]
[406359331,1771794631743,-401.41588573,0.00032818,2]
[406359333,1771794631752,-298.84973481,0.00033605,2]
[406359335,1771794631762,-341.20101151,0.00033605,2]
[406359337,1771794631771,-200.0,0.00033911,37]
[406359339,1771794631781,-500.0,0.00035349,30]
[406359341,1771794631790,-500.0,0.00035868,30]
[406359343,1771794631799,-301.36107712,0.00035958,2]
[406359345,1771794631808,-500.0,0.00036111,30]
[406359347,1771794631817,-394.420134,0.00036944,2]
[406359349,1771794631826,-200.0,0.0003697,44]
[406359351,1771794631835,-553.25071595,0.00037288,2]
[406359353,1771794631844,-292.7788389,0.00037288,2]
[406359355,1771794631854,-2113.31387385,0.00037397,4]
[406359357,1771794631862,-500.0,0.00037502,30]
[406359359,1771794631872,-224.67865117,0.00037851,2]
[406359361,1771794631881,-203.81085029,0.00037851,2]
[406359363,1771794631892,-481.86,0.00038,60]
[406359365,1771794631900,-243.61965722,0.00038959,30]
[406359367,1771794631910,-510.82809877,0.00038972,2]
[406359368,1771794631919,-919.49057779,0.00038972,2]
[406359369,1771794631928,-1634.64991608,0.00038972,2]
[406359370,1771794631937,-2554.14049387,0.00038972,2]
[406359371,1771794631946,-51.8893773,0.00039059,2]
[406359532,1771794637719,-518.53242205,0.00039059,2]
[406359534,1771794637728,-1026.75923883,0.00039059,2]
[406359536,1771794637737,-1825.34975791,0.00039059,2]
[406359538,1771794637746,-2852.10899674,0.00039059,2]
[406359540,1771794637756,-4107.03695531,0.00039059,2]
[406359542,1771794637766,-1777.5872868,0.00039918,2]
[406359544,1771794637776,-1947.5444356,0.00039918,2]
[406359546,1771794637785,-3302.78217066,0.0003999,3]
[406359548,1771794637794,-4454.74130733,0.0004,3]
[406359550,1771794637803,-200.0,0.00040029,54]
[406359552,1771794637812,-2903.70558826,0.000404,2]
[406359554,1771794637822,-151.0,0.000405,120]
[406359556,1771794637831,-151.0,0.000405,120]
[406359558,1771794637840,-151.0,0.000405,120]
[406359560,1771794637848,-216.56444,0.000405,120]
[406359562,1771794637857,-500.0,0.00040545,30]
[406359564,1771794637867,-1852.45651946,0.0004119,3]
[406359801,1771794642964,-36.55960236,0.0004119,3]
[406359802,1771794643066,-1413.76604884,0.0004119,3]
[406359803,1771794643075,-4497.35,0.000412,14]
[406359804,1771794643085,-151.0,0.000412,120]
[406359805,1771794643094,-151.0,0.000412,120]
[406359806,1771794643103,-151.0,0.000412,120]
[406359807,1771794643113,-151.0,0.000412,30]
[406359808,1771794643122,-200.011921,0.000412,120]
[406359809,1771794643132,-200.011921,0.000412,120]
[406359810,1771794643141,-200.011921,0.000412,120]
[406359811,1771794643150,-153.0314977,0.000412,120]
[406359817,1771794645717,-46.9804233,0.000412,120]
[406359818,1771794645727,-857.68,0.000412,120]
[406359819,1771794645736,-421.39,0.000412,120]
[406359820,1771794645746,-151.0,0.0004149,120]
[406359821,1771794645755,-151.0,0.0004149,120]
[406359822,1771794645764,-151.0,0.0004149,120]
[406359823,1771794645773,-200.83988501,0.0004149,3]
[406359824,1771794645829,-42.39000572,0.0004149,3]
[406359825,1771794645840,-500.77665763,0.0004149,3]
[406359826,1771794645849,-151.0,0.000415,120]
[406359827,1771794645858,-151.0,0.000415,120]
[406359828,1771794645867,-151.0,0.000415,120]
[406359829,1771794645876,-370.0,0.0004158,15]
[406359830,1771794645885,-600.0,0.00042329,60]
[406359831,1771794645895,-151.0,0.000425,120]
[406359832,1771794645904,-151.0,0.000425,120]
[406359833,1771794645913,-151.0,0.000425,120]
[406359834,1771794645922,-151.0,0.000425,120]
[406359835,1771794645932,-151.0,0.000425,120]
[406359836,1771794645941,-151.0,0.000425,120]
[406359837,1771794645950,-151.410447,0.000425,30]
[406359838,1771794645959,-200.011921,0.000425,120]
[406359839,1771794645968,-200.011921,0.000425,120]
[406359840,1771794645978,-200.011921,0.000425,120]
[406359841,1771794645987,-200.011921,0.000425,120]
[406359842,1771794645996,-2903.70558826,0.00042525,2]
[406359843,1771794646005,-151.0,0.0004299,120]
[406359844,1771794646015,-151.0,0.0004299,120]
[406359845,1771794646024,-151.0,0.0004299,120]
[406359846,1771794646033,-3302.78217066,0.0004299,3]
[406359847,1771794646043,-857.68,0.0004326,120]
[406359848,1771794646052,-421.39,0.0004326,120]
[406359849,1771794646063,-209.40437684,0.00043721,2]
[406359850,1771794646073,-217.15233878,0.00043721,2]
[406359851,1771794646083,-225.18697532,0.00043721,2]
[406359852,1771794646092,-233.51889341,0.00043721,2]
[406359853,1771794646102,-242.15909246,0.00043721,2]
[406359854,1771794646112,-251.11897888,0.00043721,2]
[406359855,1771794646122,-260.4103811,0.00043721,2]
[406359856,1771794646131,-270.0455652,0.00043721,2]
[406359857,1771794646141,-280.03725112,0.00043721,2]
[406359858,1771794646150,-290.39862941,0.00043721,2]
[406359859,1771794646159,-301.1433787,0.00043721,2]
[406359860,1771794646168,-151.0,0.00043721,120]
[406359861,1771794646177,-245.054398,0.00043721,120]
[406359862,1771794646187,-200.011921,0.00043721,120]
[406359863,1771794646196,-200.011921,0.00043721,120]
[406359864,1771794646206,-200.011921,0.00043721,120]
[406359865,1771794646215,-200.011921,0.00043721,120]
[406359866,1771794646224,-500.0,0.00043959,30]
[406359867,1771794646233,-151.0,0.00044,120]
[406359868,1771794646243,-151.0,0.00044,120]
[406359869,1771794646252,-285.250323,0.00044,120]